lending/lending_fUSD_20240130
["ID","MTS","AMOUNT","RATE_DAILY","PERIOD"]
[313027614,1706644254992,-153.97,0.000398,3]
[313027615,1706644255002,-153.97,0.000398,3]
[313027616,1706644255013,-153.97,0.000398,3]
[313027617,1706644255027,-153.97,0.000398,3]
[313027618,1706644255037,-153.97,0.000398,3]
[313027619,1706644255047,-153.97,0.000398,3]
[313027620,1706644255057,-153.97,0.000398,3]
[313027621,1706644255067,-153.97,0.000398,3]
[313027622,1706644255077,-153.97,0.000398,3]
[313027623,1706644255087,-153.97,0.000398,3]
[313027624,1706644255097,-153.97,0.000398,3]
[313027625,1706644255108,-261.44575353,0.00039874,2]
[313027626,1706644255119,-194.77606192,0.00039874,2]
[313027627,1706644255131,-719.28,0.000399,7]
[313027628,1706644255141,-350.00012537,0.000399,4]
[313027629,1706644255151,-2877.90932172,0.000399,13]
[313027630,1706644255161,-608.81209181,0.000399,9]
[313027631,1706644255172,-265.84115819,0.000399,2]
[313027632,1706644255182,-1308.05261984,0.000399,2]
[313027633,1706644255193,-17550.35815927,0.000399,2]
[313027634,1706644255204,-1027.41095898,0.000399,2]
[313027635,1706644255214,-150.0,0.00039942,2]
[313027636,1706644255225,-68775.73451045,0.00039997,2]
[313027637,1706644255235,-500.0,0.00039999,31]
[313027638,1706644255247,-344.59804189,0.00039999,31]
[313027639,1706644255257,-500.0,0.00039999,31]
[313027640,1706644255269,-500.0,0.00039999,31]
[313027641,1706644255280,-570.0,0.00039999,31]
[313027642,1706644255292,-184.53582259,0.00039999,31]
[313027643,1706644255302,-401.4103454,0.00039999,31]
[313027644,1706644255312,-500.0,0.00039999,31]
[313027645,1706644255324,-325.26015907,0.00039999,31]
[313027646,1706644255334,-424.81788688,0.00039999,31]
[313027647,1706644255343,-500.0,0.00039999,31]
[313027648,1706644255356,-500.0,0.00039999,31]
[313027649,1706644255365,-500.0,0.00039999,31]
[313027650,1706644255375,-500.0,0.00039999,31]
[313027651,1706644255384,-500.0,0.00039999,31]
[313027652,1706644255393,-415.95057103,0.00039999,31]
[313027653,1706644255403,-50000.0,0.0004,20]
[313027654,1706644255413,-2493.70992855,0.0004,3]
[313027655,1706644255422,-5907.19917746,0.0004,3]
[313027656,1706644255431,-207.22403962,0.0004,2]
[313027657,1706644255440,-1000.0,0.0004,9]
[313027658,1706644255450,-6869813.70794409,0.0004,7]
[313027659,1706644255459,-330.5932137,0.0004,30]
[313027660,1706644255468,-211.26839046,0.0004,30]
[313027661,1706644255477,-500.0,0.0004,15]
[313027662,1706644255487,-300.0,0.0004,43]
[313027663,1706644255497,-3232.46889612,0.0004,30]
[313027664,1706644255506,-302.14336193,0.0004,120]
[313027665,1706644255515,-1000.0,0.0004,120]
[313027666,1706644255524,-1108.44946916,0.0004,10]
[313027667,1706644255536,-2025.0,0.0004,10]
[313027668,1706644255546,-5000.0,0.0004,5]
[313027669,1706644255556,-156.21335991,0.0004,3]
[313027670,1706644255566,-962.61402678,0.0004,2]
[313027671,1706644255575,-312.17671248,0.0004,5]
[313027672,1706644255585,-187.584478,0.0004,2]
[313027673,1706644255596,-270.3670346,0.0004,30]
[313027674,1706644255608,-208.196585,0.0004,120]
[313027675,1706644255619,-44773.7084257,0.0004,5]
[313027676,1706644255629,-1000.0,0.0004,9]
[313027677,1706644255638,-2681.30267079,0.0004,4]
[313027678,1706644255648,-2275.63385097,0.0004,4]
[313027679,1706644255658,-1085.37856486,0.0004,4]
[313027680,1706644255846,-570.51160774,0.0004,4]
[313027681,1706644255856,-33867.96226086,0.0004,4]
[313027682,1706644255866,-172.12796008,0.0004,4]
[313027683,1706644255875,-22049.77147498,0.0004,4]
[313027684,1706644255884,-54412.27449646,0.0004,4]
[313027685,1706644255894,-109838.23284486,0.0004,2]
[313027686,1706644255903,-225.30078437,0.0004,2]
[313027687,1706644255912,-237.78730782,0.0004,2]
[313027689,1706644255921,-180.59186097,0.0004,2]
[313027690,1706644255930,-155.0,0.0004,2]
[313027691,1706644255939,-1249.39471108,0.0004,2]
[313027692,1706644255948,-11600.00591374,0.0004,2]
[313027693,1706644255957,-1114.3863794,0.0004,2]
[313027694,1706644255966,-194097.72990777,0.0004,2]
[313027695,1706644255976,-60670.33174977,0.0004,2]
[313027696,1706644255985,-60670.33174977,0.0004,2]
[313027697,1706644255994,-1083.32636163,0.0004,2]
[313027698,1706644256003,-154.009525,0.0004,15]
[313027699,1706644256012,-209.0,0.00040023,2]
[313027700,1706644256021,-3000.0,0.000401,30]
[313027701,1706644256031,-762.36,0.00040218,2]
[313027702,1706644256040,-913.638484,0.0004025,2]
[313027703,1706644256050,-692.050145,0.0004025,2]
[313027704,1706644256059,-261.528308,0.0004025,2]
[313027705,1706644256068,-784.584925,0.0004025,2]
[313027706,1706644256077,-634.453557,0.0004025,2]
[313027707,1706644256086,-174.536981,0.00040258,2]
[313027708,1706644256096,-272.765274,0.00040258,2]
[313027709,1706644256106,-195.51652,0.00040258,2]
[313027710,1706644256115,-173.390752,0.00040258,2]
[313027711,1706644256124,-178.513076,0.00040258,2]
[313027712,1706644256133,-261.528308,0.00040258,2]
[313027713,1706644256142,-800.134483,0.00040258,2]
[313027714,1706644256150,-1925.82611,0.00040258,2]
[313027715,1706644256160,-176.312349,0.00040258,2]
[313027716,1706644256169,-181.200003,0.00040258,2]
[313027717,1706644256178,-195.720499,0.00040258,2]
[313027718,1706644256186,-165.282069,0.00040258,2]
[313027719,1706644256195,-173.23687,0.00040258,2]
[313027720,1706644256205,-392.292463,0.00040258,2]
[313027721,1706644256214,-1228.223581,0.00040258,2]
[313027722,1706644256223,-2886.890922,0.00040258,2]
[313027723,1706644256232,-2200.10361826,0.00040262,5]
[313027724,1706644256242,-260.43022386,0.000403,4]
[313027725,1706644256251,-153.48051278,0.000404,8]
[313027726,1706644256259,-150.0,0.00040519,2]
[313027727,1706644256269,-409.91,0.00040548,2]
[313027728,1706644256278,-819.44,0.00040548,2]
[313027729,1706644256287,-308.16,0.00040548,2]
[313027730,1706644256296,-154.18,0.00040548,2]
[313027731,1706644256314,-165.61,0.00040548,2]
[313027732,1706644256325,-419.9,0.00040548,2]
[313027733,1706644256333,-150.0,0.00040548,2]
[313027734,1706644256344,-152.09,0.00040548,2]
[313027735,1706644256353,-150.0,0.00040548,2]
[313027736,1706644256362,-150.0,0.00040548,2]
[313027737,1706644256372,-150.0,0.00040548,2]
[313027738,1706644256381,-150.0,0.00040548,2]
[313027739,1706644256391,-419.9,0.00040548,2]
[313027740,1706644256401,-417.71,0.00040548,2]
[313027741,1706644256410,-150.0,0.00040548,2]
[313027742,1706644256420,-150.0,0.00040548,2]
[313027743,1706644256429,-150.0,0.00040548,2]
[313027744,1706644256438,-150.0,0.00040548,2]
[313027745,1706644256448,-150.0,0.00040548,2]
[313027746,1706644256457,-150.0,0.00040548,2]
[313027747,1706644256466,-150.0,0.00040548,2]
[313027748,1706644256476,-150.0,0.00040548,2]
[313027749,1706644256485,-150.0,0.00040548,2]
[313027750,1706644256494,-254.24,0.00040548,2]
[313027751,1706644256503,-25000.0,0.000406,2]
[313027752,1706644256512,-150.0,0.00040699,2]
[313027753,1706644256522,-25000.0,0.000407,2]
[313027754,1706644256532,-1000.0,0.00040733,2]
[313027755,1706644256546,-913.638484,0.00040747,2]
[313027756,1706644256555,-692.050145,0.00040747,2]
[313027757,1706644256564,-261.528308,0.00040747,2]
[313027758,1706644256574,-784.584925,0.00040747,2]
[313027759,1706644256584,-634.453557,0.00040747,2]
[313027760,1706644256593,-177.575854,0.00040747,2]
[313027761,1706644256602,-174.536981,0.00040761,2]
[313027762,1706644256614,-261.528308,0.00040761,2]
[313027763,1706644256624,-800.134483,0.00040761,2]
[313027764,1706644256634,-1925.82611,0.00040761,2]
[313027765,1706644256643,-392.292463,0.00040761,2]
[313027766,1706644256653,-1228.223581,0.00040761,2]
[313027767,1706644256663,-2886.890922,0.00040761,2]
[313027768,1706644256672,-1490.0,0.000408,12]
[313027769,1706644256681,-25000.0,0.000408,2]
[313027770,1706644256691,-10000.0,0.00040888,2]
[313027771,1706644256701,-15939.09476008,0.00040996,3]
[313027772,1706644256711,-50000.0,0.00041,21]
[313027773,1706644256720,-2567.58523611,0.00041,7]
[313027774,1706644256730,-2020.66,0.00041,8]
[313027775,1706644256739,-1000.0,0.00041,10]
[313027776,1706644256749,-495.5939743,0.00041,42]
[313027777,1706644256758,-1650.0,0.00041,3]
[313027778,1706644256768,-800.0,0.00041,2]
[313027779,1706644256778,-1081.44379639,0.00041,2]
[313027780,1706644256787,-1148.30418407,0.00041028,13]
[313027781,1706644256797,-1148.30418404,0.00041028,13]
[313027782,1706644256807,-1148.30418404,0.00041028,13]
[313027783,1706644256817,-1148.30418404,0.00041028,13]
[313027784,1706644256827,-1148.30418404,0.00041028,13]
[313027785,1706644256837,-1148.30418404,0.00041028,13]
[313027786,1706644256847,-151.025485,0.00041096,14]
[313027787,1706644256857,-151.0,0.00041096,7]
[313027788,1706644256866,-151.0,0.00041096,7]
[313027789,1706644256876,-151.0,0.00041096,7]
[313027790,1706644256886,-151.0,0.00041096,14]
[313027791,1706644256896,-152.01908,0.00041096,14]
[313027792,1706644256906,-151.0,0.00041096,14]
[313027793,1706644256916,-163.029086,0.00041096,14]
[313027794,1706644256925,-1000.0,0.00041096,2]
[313027795,1706644256935,-1091.828602,0.00041096,2]
[313027796,1706644256945,-151.0,0.00041096,14]
[313027797,1706644256954,-151.0,0.00041096,14]
[313027798,1706644256965,-151.0,0.00041096,2]
[313027799,1706644256975,-151.0,0.00041096,2]
[313027800,1706644256990,-151.0,0.00041096,2]
[313027801,1706644257001,-151.0,0.00041096,2]
[313027802,1706644257011,-151.0,0.00041096,2]
[313027803,1706644257022,-151.0,0.00041096,14]
[313027804,1706644257032,-151.0,0.00041096,14]
[313027805,1706644257042,-151.0,0.00041096,14]
[313027806,1706644257053,-151.0,0.00041096,14]
[313027807,1706644257062,-151.0,0.00041096,14]
[313027808,1706644257071,-288.451585,0.00041096,14]
[313027809,1706644257081,-155.061994,0.00041096,14]
[313027810,1706644257091,-199.78,0.00041096,14]
[313027811,1706644257100,-199.78,0.00041096,14]
[313027812,1706644257110,-199.78,0.00041096,14]
[313027813,1706644257119,-199.78,0.00041096,14]
[313027814,1706644257129,-199.78,0.00041096,14]
[313027815,1706644257138,-199.78,0.00041096,14]
[313027816,1706644257147,-199.78,0.00041096,14]
[313027817,1706644257156,-199.78,0.00041096,14]
[313027818,1706644257166,-199.78,0.00041096,14]
[313027819,1706644257176,-199.78,0.00041096,14]
[313027820,1706644257186,-199.78,0.00041096,14]
[313027821,1706644257195,-199.78,0.00041096,14]
[313027822,1706644257205,-199.78,0.00041096,14]
[313027823,1706644257214,-199.78,0.00041096,14]
[313027824,1706644257224,-199.78,0.00041096,14]
[313027825,1706644257236,-199.78,0.00041096,14]
[313027826,1706644257245,-199.78,0.00041096,14]
[313027827,1706644257254,-199.78,0.00041096,14]
[313027828,1706644257265,-199.78,0.00041096,14]
[313027829,1706644257274,-199.78,0.00041096,14]
[313027830,1706644257284,-151.0,0.00041096,7]
[313027831,1706644257294,-151.0,0.00041096,7]
[313027832,1706644257303,-154.091665,0.00041096,7]
[313027833,1706644257312,-151.0,0.00041096,14]
[313027834,1706644257322,-151.0,0.00041096,14]
[313027835,1706644257331,-151.0,0.00041096,14]
[313027836,1706644257340,-151.0,0.00041096,14]
[313027837,1706644257350,-151.0,0.00041096,14]
[313027838,1706644257359,-151.0,0.00041096,14]
[313027839,1706644257368,-151.0,0.00041096,14]
[313027840,1706644257377,-286.916229,0.00041096,14]
[313027841,1706644257387,-22028.1,0.00041096,5]
[313027842,1706644257397,-151.0,0.00041096,14]
[313027843,1706644257406,-181.0,0.00041096,2]
[313027844,1706644257415,-151.0,0.00041096,14]
[313027845,1706644257425,-151.0,0.00041096,14]
[313027846,1706644257434,-151.0,0.00041096,14]
[313027847,1706644257443,-151.0,0.00041096,14]
[313027848,1706644257453,-151.0,0.00041096,14]
[313027849,1706644257462,-151.0,0.00041096,14]
[313027850,1706644257471,-151.0,0.00041096,14]
[313027851,1706644257481,-151.0,0.00041096,14]
[313027852,1706644257490,-151.0,0.00041096,14]
[313027853,1706644257500,-151.0,0.00041096,14]
[313027854,1706644257509,-297.085315,0.00041096,14]
[313027855,1706644257519,-150.0,0.00041096,2]
[313027856,1706644257528,-151.0,0.00041096,14]
[313027857,1706644257540,-151.0,0.00041096,14]
[313027858,1706644257720,-175.806206,0.00041096,14]
[313027859,1706644257731,-156.163073,0.00041096,7]
[313027860,1706644257741,-156.163073,0.00041096,7]
[313027861,1706644257750,-156.163073,0.00041096,7]
[313027862,1706644257759,-156.163073,0.00041096,7]
[313027863,1706644257768,-156.163073,0.00041096,7]
[313027864,1706644257778,-156.163073,0.00041096,7]
[313027865,1706644257788,-156.163073,0.00041096,7]
[313027866,1706644257797,-156.163073,0.00041096,7]
[313027867,1706644257806,-156.163073,0.00041096,7]
[313027868,1706644257815,-156.163073,0.00041096,7]
[313027869,1706644257824,-156.163073,0.00041096,7]
[313027870,1706644257833,-156.163073,0.00041096,7]
[313027871,1706644257842,-156.163073,0.00041096,7]
[313027872,1706644257851,-156.163073,0.00041096,7]
[313027873,1706644257860,-156.163073,0.00041096,7]
[313027874,1706644257870,-156.163073,0.00041096,7]
[313027875,1706644257881,-156.163073,0.00041096,7]
[313027876,1706644257890,-156.163073,0.00041096,7]
[313027877,1706644257900,-156.163073,0.00041096,7]
[313027878,1706644257910,-156.16307,0.00041096,7]
[313027879,1706644257919,-169.679992,0.00041096,14]
[313027880,1706644257929,-151.0,0.00041096,14]
[313027881,1706644257939,-177.189384,0.00041096,14]
[313027882,1706644257948,-151.0,0.00041096,14]
[313027883,1706644257957,-151.0,0.00041096,14]
[313027884,1706644257968,-258.372727,0.00041096,14]
[313027885,1706644257978,-160.564165,0.00041096,14]
[313027886,1706644257988,-151.0,0.00041096,14]
[313027887,1706644257998,-195.560731,0.00041096,14]
[313027888,1706644258007,-151.0,0.00041096,14]
[313027889,1706644258018,-151.0,0.00041096,14]
[313027890,1706644258028,-151.000439,0.00041096,14]
[313027891,1706644258039,-151.0,0.00041096,7]
[313027892,1706644258048,-164.354778,0.00041096,7]
[313027893,1706644258058,-151.0,0.00041096,14]
[313027894,1706644258066,-151.0,0.00041096,14]
[313027895,1706644258075,-151.0,0.00041096,14]
[313027896,1706644258084,-178.553429,0.00041096,14]
[313027897,1706644258093,-159.851725,0.00041096,14]
[313027898,1706644258102,-151.0,0.00041096,14]
[313027899,1706644258111,-151.0,0.00041096,14]
[313027900,1706644258120,-151.00000078,0.00041096,14]
[313027901,1706644258130,-151.0,0.00041096,14]
[313027902,1706644258141,-151.0,0.00041096,14]
[313027903,1706644258150,-191.514891,0.00041096,14]
[313027904,1706644258159,-185.364237,0.00041096,14]
[313027905,1706644258168,-185.364237,0.00041096,14]
[313027906,1706644258177,-185.364237,0.00041096,14]
[313027907,1706644258187,-185.364237,0.00041096,14]
[313027908,1706644258196,-185.364237,0.00041096,14]
[313027909,1706644258205,-185.364237,0.00041096,14]
[313027910,1706644258214,-185.364237,0.00041096,14]
[313027911,1706644258223,-185.364237,0.00041096,14]
[313027912,1706644258232,-185.364237,0.00041096,14]
[313027913,1706644258241,-185.364237,0.00041096,14]
[313027914,1706644258250,-185.364237,0.00041096,14]
[313027915,1706644258263,-151.0,0.00041096,14]
[313027916,1706644258272,-185.364237,0.00041096,14]
[313027917,1706644258281,-152.340641,0.00041096,14]
[313027918,1706644258291,-185.364237,0.00041096,14]
[313027919,1706644258300,-185.364237,0.00041096,14]
[313027920,1706644258309,-185.364237,0.00041096,14]
[313027921,1706644258318,-185.364237,0.00041096,14]
[313027922,1706644258328,-185.364237,0.00041096,14]
[313027923,1706644258337,-185.364237,0.00041096,14]
[313027924,1706644258346,-185.364237,0.00041096,14]
[313027925,1706644258356,-185.364235,0.00041096,14]
[313027926,1706644258365,-157.279191,0.00041096,14]
[313027927,1706644258375,-183.776257,0.00041096,14]
[313027928,1706644258384,-183.776257,0.00041096,14]
[313027929,1706644258393,-166.01436,0.00041096,14]
[313027930,1706644258402,-183.776257,0.00041096,14]
[313027931,1706644258412,-183.776257,0.00041096,14]
[313027932,1706644258421,-183.776257,0.00041096,14]
[313027933,1706644258430,-183.776257,0.00041096,14]
[313027934,1706644258439,-183.776257,0.00041096,14]
[313027935,1706644258449,-183.776257,0.00041096,14]
[313027936,1706644258459,-183.776257,0.00041096,14]
[313027937,1706644258468,-183.776257,0.00041096,14]
[313027938,1706644258478,-183.776257,0.00041096,14]
[313027939,1706644258487,-183.776257,0.00041096,14]
[313027940,1706644258496,-183.776257,0.00041096,14]
[313027941,1706644258511,-183.776257,0.00041096,14]
[313027942,1706644258533,-183.776257,0.00041096,14]
[313027943,1706644258550,-183.776257,0.00041096,14]
[313027944,1706644258572,-183.776257,0.00041096,14]
[313027945,1706644258588,-183.776257,0.00041096,14]
[313027946,1706644258607,-183.776257,0.00041096,14]
[313027947,1706644258626,-183.776266,0.00041096,14]
[313027948,1706644258643,-1026.39,0.00041096,2]
[313027949,1706644258660,-151.0,0.00041096,14]
[313027950,1706644258677,-151.0,0.00041096,14]
[313027951,1706644258697,-151.0,0.00041096,14]
[313027952,1706644258718,-151.0,0.00041096,14]
[313027953,1706644258730,-151.0,0.00041096,14]
[313027954,1706644258746,-151.0,0.00041096,14]
[313027955,1706644258764,-254.366906,0.00041096,14]
[313027956,1706644258776,-1085748.05,0.00041096,2]
[313027957,1706644258794,-151.0,0.00041096,14]
[313027958,1706644258810,-164.813315,0.00041096,14]
[313027959,1706644258824,-6844.17,0.00041096,2]
[313027960,1706644258840,-151.0,0.00041096,14]
[313027961,1706644258856,-151.0,0.00041096,14]
[313027962,1706644258871,-151.0,0.00041096,14]
[313027963,1706644258887,-151.0,0.00041096,14]
[313027964,1706644258901,-151.0,0.00041096,14]
[313027965,1706644258916,-151.0,0.00041096,14]
[313027966,1706644258931,-151.0,0.00041096,14]
[313027967,1706644258946,-1012.354279,0.00041096,14]
[313027968,1706644258960,-1012.354279,0.00041096,14]
[313027969,1706644258975,-1012.354279,0.00041096,14]
[313027970,1706644258989,-1012.354279,0.00041096,14]
[313027971,1706644259004,-1012.354279,0.00041096,14]
[313027972,1706644259018,-1012.354279,0.00041096,14]
[313027973,1706644259036,-1012.354279,0.00041096,14]
[313027974,1706644259051,-1012.354279,0.00041096,14]
[313027975,1706644259065,-1012.354279,0.00041096,14]
[313027976,1706644259079,-1012.354279,0.00041096,14]
[313027977,1706644259094,-1012.354279,0.00041096,14]
[313027978,1706644259108,-1012.354279,0.00041096,14]
[313027979,1706644259123,-1012.354279,0.00041096,14]
[313027980,1706644259138,-1012.354279,0.00041096,14]
[313027981,1706644259154,-2994.0,0.00041096,30]
[313027982,1706644259169,-3326.0,0.00041096,30]
[313027983,1706644259183,-150.0,0.00041096,2]
[313027984,1706644259197,-155.0,0.00041097,2]
[313027985,1706644259212,-719.28,0.000411,7]
[313027986,1706644259227,-1000.0,0.000411,2]
[313027987,1706644259242,-2221.07,0.000411,2]
[313027988,1706644259255,-2221.07,0.000411,2]
[313027989,1706644259270,-2221.07,0.000411,2]
[313027990,1706644259287,-2221.07,0.000411,2]
[313027991,1706644259304,-2221.07,0.000411,2]
[313027992,1706644259319,-2221.07,0.000411,2]
[313027993,1706644259335,-2221.07,0.000411,2]
[313027994,1706644259350,-2221.07,0.000411,2]
[313027995,1706644259365,-2221.07,0.000411,2]
[313027996,1706644259379,-2221.07,0.000411,2]
[313027997,1706644259398,-2000.0,0.00041198,11]
[313027998,1706644259413,-152.0,0.00041224,3]
[313027999,1706644259427,-692.050145,0.00041244,30]
[313028000,1706644259442,-261.528308,0.00041244,30]
[313028001,1706644259458,-784.584925,0.00041244,30]
[313028002,1706644259473,-634.453557,0.00041244,30]
[313028003,1706644259488,-174.536981,0.00041264,30]
[313028004,1706644259503,-261.528308,0.00041264,30]
[313028005,1706644259517,-800.134483,0.00041264,30]
[313028006,1706644259533,-1925.82611,0.00041264,30]
[313028007,1706644259549,-392.292463,0.00041264,30]
[313028008,1706644259563,-1228.223581,0.00041264,30]
[313028009,1706644259579,-2886.890922,0.00041264,30]
[313028010,1706644259600,-173.390752,0.00041264,30]
[313028011,1706644259615,-210.0,0.00041321,2]
[313028012,1706644259629,-409.91,0.0004137,2]
[313028013,1706644259645,-409.91,0.0004137,2]
[313028014,1706644259661,-1148.30418404,0.00041465,13]
[313028015,1706644259670,-184.54931452,0.00041522,4]
[313028016,1706644259679,-153.48051278,0.00041567,12]
[313028017,1706644259689,-692.050145,0.00041741,30]
[313028018,1706644259698,-261.528308,0.00041741,30]
[313028019,1706644259707,-784.584925,0.00041741,30]
[313028020,1706644259716,-634.453557,0.00041741,30]
[313028021,1706644259952,-177.575854,0.00041741,30]
[313028022,1706644259963,-174.536981,0.00041768,30]
[313028023,1706644259972,-261.528308,0.00041768,30]
[313028024,1706644259981,-800.134483,0.00041768,30]
[313028025,1706644259990,-1925.82611,0.00041768,30]
[313028026,1706644259999,-392.292463,0.00041768,30]
[313028027,1706644260008,-1228.223581,0.00041768,30]
[313028028,1706644260018,-2886.890922,0.00041768,30]
[313028029,1706644260027,-275.775378,0.000418,3]
[313028030,1706644260037,-2200.10361826,0.00041841,5]
[313028031,1706644260046,-261.44575353,0.00041849,3]
[313028032,1706644260056,-194.77606192,0.00041849,3]
[313028033,1706644260065,-1101.0,0.0004199,2]
[313028034,1706644260074,-874.0,0.0004199,2]
[313028035,1706644260083,-50000.0,0.00042,22]
[313028036,1706644260092,-1013.0,0.00042,9]
[313028037,1706644260102,-500.0,0.00042,5]
[313028038,1706644260111,-730.94648904,0.00042,4]
[313028039,1706644260120,-2325.76115459,0.00042,30]
[313028040,1706644260129,-302876.47643628,0.00042,30]
[313028041,1706644260139,-424.56,0.00042,7]
[313028042,1706644260149,-9999.999999,0.00042,2]
[313028043,1706644260158,-600.0,0.00042,43]
[313028044,1706644260168,-1000.0,0.00042,12]
[313028045,1706644260177,-1997.42,0.00042,2]
[313028046,1706644260186,-913.291127,0.00042,2]
[313028047,1706644260195,-200.0,0.00042,2]
[313028048,1706644260204,-1000.0,0.00042,4]
[313028049,1706644260213,-151.57815645,0.0004201,30]
[313028050,1706644260223,-5000.0,0.00042028,10]
[313028051,1706644260232,-150.0,0.00042028,2]
[313028052,1706644260242,-150.0,0.00042028,2]
[313028053,1706644260251,-44015.70834207,0.00042028,5]
[313028054,1706644260260,-7049.0,0.00042028,14]
[313028055,1706644260270,-30903.355,0.00042028,7]
[313028056,1706644260279,-5376.32,0.00042028,13]
[313028057,1706644260289,-1000.0,0.00042028,30]
[313028058,1706644260298,-1000.0,0.00042028,30]
[313028059,1706644260307,-1000.0,0.00042028,30]
[313028060,1706644260316,-1000.0,0.00042028,30]
[313028061,1706644260324,-1000.0,0.00042028,30]
[313028062,1706644260333,-1000.0,0.00042028,30]
[313028063,1706644260342,-1000.0,0.00042028,30]
[313028064,1706644260352,-1000.0,0.00042028,30]
[313028065,1706644260361,-1000.0,0.00042028,30]
[313028066,1706644260370,-546.77322187,0.00042028,30]
[313028067,1706644260379,-226.65683919,0.00042028,30]
[313028068,1706644260387,-580453.56706278,0.00042028,5]
[313028069,1706644260396,-160.23328152,0.00042028,120]
[313028070,1706644260405,-2418.59628291,0.00042028,30]
[313028071,1706644260414,-2940.78281021,0.00042028,30]
[313028072,1706644260424,-14821.37373125,0.00042028,14]
[313028073,1706644260433,-3066.5105793,0.00042028,120]
[313028074,1706644260442,-1438.26656961,0.00042028,120]
[313028075,1706644260451,-61220.24684696,0.00042028,5]
[313028076,1706644260462,-1023.90055703,0.00042028,31]
[313028077,1706644260471,-2967.96411145,0.00042028,31]
[313028078,1706644260481,-82803.01737644,0.00042028,2]
[313028079,1706644260490,-163.60143525,0.00042028,7]
[313028080,1706644260500,-10634.41405733,0.00042028,2]
[313028081,1706644260511,-4800.0,0.00042028,10]
[313028082,1706644260521,-8249.4358483,0.00042028,2]
[313028083,1706644260531,-4510.55683329,0.00042028,10]
[313028084,1706644260544,-6814.55610531,0.00042028,10]
[313028085,1706644260553,-90581.00437262,0.00042028,10]
[313028086,1706644260563,-2058.0,0.00042028,30]
[313028087,1706644260572,-8020.85357036,0.00042028,7]
[313028088,1706644260581,-524.73096927,0.00042028,3]
[313028089,1706644260590,-853.98560771,0.00042028,2]
[313028090,1706644260599,-1906.90515561,0.00042028,2]
[313028091,1706644260608,-1978.094054,0.00042028,30]
[313028092,1706644260618,-1741.99153,0.00042028,30]
[313028093,1706644260627,-306.794346,0.00042028,30]
[313028094,1706644260636,-1103.70158812,0.00042044,30]
[313028095,1706644260645,-3873.71011294,0.00042057,4]
[313028096,1706644260655,-1396.85163226,0.00042058,2]
[313028097,1706644260664,-666.0,0.000421,4]
[313028098,1706644260673,-150.0,0.00042177,2]
[313028099,1706644260683,-209.0,0.0004219,2]
[313028100,1706644260693,-1000.0,0.00042205,2]
[313028101,1706644260702,-23093.45496841,0.00042238,19]
[313028102,1706644260712,-174.536981,0.00042271,30]
[313028103,1706644260721,-261.528308,0.00042271,30]
[313028104,1706644260730,-800.134483,0.00042271,30]
[313028105,1706644260740,-1925.82611,0.00042271,30]
[313028106,1706644260749,-392.292463,0.00042271,30]
[313028107,1706644260759,-1228.223581,0.00042271,30]
[313028108,1706644260768,-2886.890922,0.00042271,30]
[313028109,1706644260778,-195.51652,0.00042271,30]
[313028110,1706644260787,-173.390752,0.00042271,30]
[313028111,1706644260798,-165.282069,0.00042271,30]
[313028112,1706644260807,-173.23687,0.00042271,30]
[313028113,1706644260816,-2114.05737293,0.000423,3]
[313028114,1706644260825,-719.28,0.000423,7]